bitfinex/quotes_ETHUSD_20251201
["timestamp","ask_amount","ask_price","bid_price","bid_amount"]
[1764578372996,0.4761,2845.3,2844.8,0.001]
[1764578373398,0.405504,2845.2,2844.8,0.001]
[1764578373900,0.4741,2845.2,2844.8,0.001]
[1764578374098,0.0751,2844.9,2844.8,0.001]
[1764578374411,0.4741,2845.2,2844.8,0.001]
[1764578374612,0.407504,2845.3,2844.8,0.001]
[1764578374825,0.881604,2845.3,2844.8,0.001]
[1764578377986,0.407504,2845.3,2844.8,0.4911]
[1764578378191,0.407504,2845.3,2844.8,1.96864417]
[1764578378600,0.407504,2845.3,2844.9,0.4901]
[1764578379027,0.407504,2845.3,2845.0,7.02987696]
[1764578380813,0.407504,2845.3,2844.9,7.03012408]
[1764578381016,0.002,2845.3,2845.2,0.4908]
[1764578382013,0.002,2845.3,2845.2,0.9809]
[1764578382609,0.002,2845.3,2845.2,1.2039]
[1764578382923,0.002,2845.3,2845.2,4.71859141]
[1764578383127,0.002,2845.3,2845.2,5.56019059]
[1764578384211,0.002,2845.3,2845.2,4.84709059]
[1764578384415,0.002,2845.3,2845.2,5.07009059]
[1764578385204,0.002,2845.3,2845.2,5.56019059]
[1764578389333,0.4972,2845.3,2845.2,3.51469141]
[1764578389529,0.5515,2845.3,2845.2,3.51469141]
[1764578389722,0.5515,2845.3,2845.0,7.02987696]
[1764578389913,0.0563,2845.3,2845.0,7.02987696]
[1764578390114,0.002,2845.3,2845.0,7.02987696]
[1764578390714,0.0751,2845.1,2845.0,3.51493848]
[1764578390946,0.4721,2845.3,2845.0,7.06502634]
[1764578391260,0.002,2845.3,2845.0,7.02987696]
[1764578391616,0.002,2845.3,2845.0,7.51997696]
[1764578391846,0.002,2845.3,2845.2,0.4908]
[1764578392430,0.002,2845.3,2845.2,0.9809]
[1764578392848,0.002,2845.3,2845.2,4.49559141]
[1764578393216,0.002,2845.3,2845.2,5.70153107]
[1764578393448,0.002,2845.3,2845.2,5.66638416]
[1764578394225,0.002,2845.3,2845.2,4.49559141]
[1764578394612,0.0574,2845.3,2845.2,3.51469141]
[1764578394920,0.002,2845.3,2845.2,3.51469141]
[1764578395219,0.002,2845.3,2845.2,3.98559141]
[1764578396939,0.002,2845.3,2845.2,4.45949141]
[1764578397261,0.002,2845.3,2845.2,3.98559141]
[1764578397970,0.002,2845.3,2845.2,5.63667107]
[1764578399089,0.002,2845.3,2845.2,5.12762416]
[1764578400765,0.002,2845.3,2845.2,5.35062416]
[1764578401173,0.002,2845.3,2845.2,3.98559141]
[1764578401387,0.4737,2845.3,2845.2,3.51469141]
[1764578401679,0.4737,2845.3,2845.2,11.20802172]
[1764578401680,0.002,2845.3,2845.2,11.20802172]
[1764578401879,0.002,2845.3,2845.2,11.17287481]
[1764578402450,0.002,2845.3,2845.2,4.00529141]
[1764578402670,0.002,2845.3,2845.2,4.22829141]
[1764578402857,0.002,2845.3,2845.2,4.26343832]
[1764578403058,0.002,2845.3,2845.2,4.75203832]
[1764578404172,0.0749,2845.3,2845.2,3.51469141]
[1764578404554,0.002,2845.3,2845.2,4.00529141]
[1764578405086,0.002,2845.3,2845.2,3.51469141]
[1764578405452,0.002,2845.3,2845.2,4.00529141]
[1764578405655,0.002,2845.3,2845.2,4.04043832]
[1764578406579,0.002,2845.3,2845.2,6.3933241]
[1764578407155,0.002,2845.3,2845.2,7.11891821]
[1764578407356,0.002,2845.3,2845.2,7.0837713]
[1764578407581,0.002,2845.3,2845.2,7.3067713]
[1764578411890,0.002,2845.3,2845.2,7.0837713]
[1764578412100,0.002,2845.3,2845.2,7.3067713]
[1764578413508,0.4758914,2846.2,2845.3,0.72559411]
[1764578413815,0.4758914,2846.2,2845.5,6.6789834]
[1764578414113,0.4758914,2846.2,2845.6,0.25814197]
[1764578414617,0.4758914,2846.2,2845.7,6.6789834]
[1764578414911,0.628504,2846.6,2845.7,6.6789834]
[1764578415098,0.405504,2846.6,2845.7,7.1675834]
[1764578415407,0.405504,2846.6,2845.9,6.6789834]
[1764578415608,0.4764,2846.5,2845.9,6.6789834]
[1764578416183,0.4764,2846.5,2846.1,6.6789834]
[1764578416413,0.0729,2846.2,2846.0,0.223]
[1764578417167,0.757504,2846.7,2846.0,0.223]
[1764578417288,0.4764,2846.5,2846.1,7.02715996]
[1764578417701,0.0729,2846.2,2846.1,3.51357998]
[1764578419786,0.4764,2846.5,2846.1,7.02715996]
[1764578419985,0.0729,2846.2,2846.1,3.51357998]
[1764578420523,0.4764,2846.7,2846.1,11.51993994]
[1764578420697,0.405504,2846.6,2846.1,11.03133994]
[1764578420909,0.405504,2846.6,2846.1,10.54073994]
[1764578421231,0.0729,2846.2,2846.1,3.51357998]
[1764578422512,0.405504,2846.6,2846.1,3.51357998]
[1764578422513,0.1576,2846.8,2846.1,8.24278694]
[1764578422819,0.4764,2846.7,2846.1,11.03133994]
[1764578423018,0.4764,2846.7,2846.1,10.54073994]
[1764578423202,0.0729,2846.2,2846.1,3.51357998]
[1764578423413,0.0729,2846.2,2846.1,3.73657998]
[1764578423601,0.0729,2846.2,2846.1,3.51357998]
[1764578423931,0.1576,2846.8,2846.1,3.51357998]
[1764578423932,0.405504,2846.6,2846.1,11.03213994]
[1764578424303,0.4897,2846.6,2846.1,11.03213994]
[1764578424901,0.1576,2846.8,2846.4,6.6789834]
[1764578425498,0.002,2846.6,2846.4,6.9019834]
[1764578425726,0.002,2846.6,2846.2,7.1365834]
[1764578425929,0.002,2846.6,2846.4,7.02641932]
[1764578426517,0.0597,2846.5,2846.4,3.51320966]
[1764578430016,0.002,2846.6,2846.4,7.48801932]
[1764578430220,0.002,2846.6,2846.5,1.5840337]
[1764578432421,0.0819,2846.6,2846.5,3.51308624]
[1764578432939,0.002,2846.6,2846.5,3.51308624]
[1764578433523,0.002,2846.6,2846.5,4.44048624]
[1764578433732,0.002,2846.6,2846.5,3.97468624]
[1764578433917,0.002,2846.6,2846.5,11.11946964]
[1764578434120,0.002,2846.6,2846.5,12.95636934]
[1764578436532,0.002,2846.6,2846.5,13.68196345]
[1764578444621,0.002,2846.6,2846.5,13.82274333]
[1764578448558,0.0819,2846.6,2846.5,12.97656345]
[1764578448730,0.0819,2846.6,2846.5,12.75456345]
[1764578448925,0.0819,2846.6,2846.5,12.97656345]
[1764578449125,0.002,2846.6,2846.5,12.97656345]
[1764578449432,0.002,2846.6,2846.5,6.75918005]
[1764578449633,0.002,2846.6,2846.5,13.43816345]
[1764578450654,0.002,2846.6,2846.5,13.21616345]
[1764578450851,0.002,2846.6,2846.5,13.43816345]
[1764578451055,0.002,2846.6,2846.5,13.90396345]
[1764578452331,0.002,2846.6,2846.5,13.43816345]
[1764578453856,0.002,2846.6,2846.5,13.92666345]
[1764578454040,0.002,2846.6,2846.5,13.43816345]
[1764578454235,0.002,2846.6,2846.5,13.92666345]
[1764578454564,0.002,2846.6,2846.5,12.75456345]
[1764578454862,0.5474,2846.6,2846.5,6.29758005]
[1764578455028,0.0921,2846.6,2846.5,6.33271091]
[1764578456129,0.0921,2846.6,2846.5,3.7702171]
[1764578456331,0.5474,2846.6,2846.5,3.7702171]
[1764578457134,0.002,2846.6,2846.5,10.4492005]
[1764578457334,0.002,2846.6,2846.5,10.41406964]
[1764578458266,0.0957,2846.6,2846.5,10.41406964]
[1764578458436,0.0957,2846.6,2846.5,5.47914594]
[1764578458765,0.0957,2846.6,2846.5,5.5142768]
[1764578459554,0.002,2846.6,2846.5,5.5142768]
[1764578459941,0.002,2846.6,2846.5,6.0040768]
[1764578460739,0.002,2846.6,2846.5,5.5142768]
[1764578460740,0.0921,2846.6,2846.5,5.5142768]
[1764578460940,0.5474,2846.6,2846.5,3.7702171]
[1764578461170,0.5474,2846.6,2846.5,3.73508624]
[1764578461353,0.0921,2846.6,2846.5,3.73508624]
[1764578461883,0.0921,2846.6,2846.5,3.7702171]
[1764578462471,0.002,2846.6,2846.5,3.7702171]
[1764578463563,0.0957,2846.6,2846.5,3.7702171]
[1764578464564,0.5474,2846.6,2846.5,3.7702171]
[1764578465575,0.5474,2846.6,2846.5,3.73508624]
[1764578466478,0.0957,2846.6,2846.5,3.73508624]
[1764578466853,0.5474,2846.6,2846.5,3.51308624]
[1764578467056,0.5474,2846.6,2846.5,3.73508624]
[1764578467442,0.540772,2846.6,2846.5,3.51308624]
[1764578469081,0.540772,2846.6,2846.2,7.02691306]
[1764578469290,0.4517,2846.6,2846.2,7.02691306]
[1764578469459,0.0927,2846.3,2846.2,3.51345653]
[1764578469982,0.5408,2846.3,2846.2,3.51345653]
[1764578470278,0.0927,2846.3,2846.2,3.51345653]
[1764578470572,0.0927,2846.3,2846.2,3.54859109]
[1764578471140,0.5408,2846.3,2846.2,3.51345653]
[1764578471383,0.5408,2846.3,2846.2,3.54859109]
[1764578472055,0.0927,2846.3,2846.2,3.54859109]
[1764578473684,0.0927,2846.3,2846.2,0.03513456]
[1764578473685,0.5408,2846.3,2846.2,0.03513456]
[1764578473885,0.5408,2846.3,2845.6,3.51513848]
[1764578473886,0.405504,2846.2,2845.6,3.51513848]
[1764578474044,0.2479,2845.7,2845.6,3.51513848]
[1764578474443,0.7015,2845.7,2845.6,3.51513848]
[1764578475461,0.7015,2845.7,2845.6,0.001]
[1764578478875,1.107004,2845.7,2845.6,0.001]
[1764578479076,1.95629165,2845.7,2845.6,0.001]
[1764578479405,1.107004,2845.7,2845.6,0.001]
[1764578479758,0.405504,2845.7,2845.6,0.001]
[1764578479965,0.495604,2845.7,2845.6,0.001]
[1764578481072,0.0901,2845.7,2845.6,0.001]
[1764578481478,0.5454,2845.7,2845.6,0.001]
[1764578482778,0.950904,2845.7,2845.6,0.001]
[1764578482978,0.495604,2845.7,2845.6,0.001]
[1764578483197,0.950904,2845.7,2845.6,0.001]
[1764578483497,0.0901,2845.7,2845.6,0.001]
[1764578487495,0.860804,2845.9,2845.6,0.001]
[1764578488404,0.222,2846.1,2845.6,1.05914763]
[1764578488405,0.4657,2846.1,2845.6,1.05914763]
[1764578488617,0.222,2846.5,2845.6,1.28114763]
[1764578488618,0.4657,2846.0,2845.6,1.28114763]
[1764578489188,0.871204,2846.2,2845.6,1.75764763]
[1764578489638,0.4657,2846.1,2845.7,7.02814772]
[1764578489984,0.0834,2845.8,2845.7,3.51407386]
[1764578490190,0.2387,2845.8,2845.7,3.51407386]
[1764578492019,0.6187,2846.0,2845.6,7.02937897]
[1764578495618,0.6187,2846.0,2845.6,10.54357632]
[1764578495819,0.6187,2846.0,2845.6,11.02007632]
[1764578496120,0.405504,2846.3,2845.7,0.4765]
[1764578496121,0.871204,2846.3,2845.7,0.4765]
[1764578496328,0.405504,2846.4,2845.9,0.499]
[1764578496820,0.405504,2846.2,2845.9,0.499]
[1764578497316,0.72759411,2846.6,2845.9,0.499]
[1764578497317,0.002,2846.6,2846.1,0.499]
[1764578497522,0.002,2846.6,2846.2,0.499]
[1764578498193,0.002,2846.6,2846.3,7.02666618]
[1764578499015,0.002,2846.6,2846.3,7.50316618]
[1764578500021,0.4648,2846.4,2846.3,3.51333309]
[1764578500226,0.0864,2846.6,2846.3,7.02666618]
[1764578500425,0.0864,2846.6,2846.2,3.5134403]
[1764578500613,0.0864,2846.6,2846.1,7.02715996]
[1764578500824,0.4648,2846.2,2846.1,3.51357998]
[1764578501322,0.405504,2846.5,2846.1,7.52615996]
[1764578501633,0.0834,2846.2,2846.1,3.51357998]
[1764578503696,0.405504,2846.5,2846.1,7.52615996]
[1764578504019,0.002,2846.6,2846.2,0.4765]
[1764578505109,0.002,2846.6,2846.3,7.02666618]
[1764578508003,0.4677,2846.6,2846.3,7.02666618]
[1764578510306,0.002,2846.6,2846.3,7.02666618]
[1764578511707,0.4677,2846.6,2846.3,7.02666618]
[1764578511930,0.0834,2846.4,2846.3,3.51333309]
[1764578513633,0.0834,2846.4,2846.0,4.2121726]
[1764578513634,0.0834,2846.4,2846.1,7.02715996]
[1764578513934,0.0834,2846.4,2846.1,7.49235996]
[1764578514239,0.4677,2846.6,2846.1,7.49235996]
[1764578514766,0.4677,2846.6,2846.2,0.4652]
[1764578514934,0.002,2846.6,2846.2,0.4652]
[1764578516310,0.002,2846.6,2846.5,0.4847]
[1764578516635,0.4831,2846.5,2846.3,7.02666618]
[1764578516937,0.0663,2846.4,2846.2,3.51339537]
[1764578517137,0.0048,2846.2,2845.6,3.51519558]
[1764578517340,0.352,2846.0,2845.6,3.51519558]
[1764578517720,0.8351,2846.0,2845.6,3.51519558]
[1764578518310,0.1561,2845.9,2845.6,0.001]
[1764578518532,0.6392,2845.9,2845.6,0.001]
[1764578518930,0.0663,2845.7,2845.6,0.001]
[1764578520243,0.471804,2845.7,2845.6,0.001]
[1764578520417,1.72919786,2845.7,2845.6,0.001]
[1764578520618,0.471804,2845.7,2845.6,0.001]
[1764578521545,0.405504,2845.7,2845.6,0.001]
[1764578521949,0.1561,2846.1,2845.6,0.4857]
[1764578522272,0.405504,2846.0,2845.6,0.4857]
[1764578522421,0.888604,2846.0,2845.7,7.02814772]
[1764578522838,0.405504,2846.2,2845.9,0.4847]
[1764578523140,0.405504,2846.2,2845.7,7.02814772]
[1764578523344,0.405504,2846.2,2845.8,0.4652]
[1764578523642,0.405504,2846.2,2845.7,7.02814772]
[1764578523643,0.2215,2845.8,2845.7,3.51407386]
[1764578524245,0.0663,2845.8,2845.7,3.51407386]
[1764578524742,0.0663,2845.8,2845.6,7.02938104]
[1764578525543,0.635,2846.0,2845.6,7.02938104]
[1764578525749,0.1552,2846.0,2845.7,0.4847]
[1764578525946,0.757504,2846.2,2845.9,0.4847]
[1764578526158,1.240604,2846.2,2845.8,0.0351395]
[1764578526336,1.240604,2846.2,2845.7,0.50034073]
[1764578527159,0.352,2846.3,2845.8,7.02790076]
[1764578527646,0.405504,2846.2,2845.8,7.49310076]
[1764578529280,0.405504,2846.2,2845.8,7.49310076]
[1764578530637,0.352,2846.3,2846.1,0.4847]
[1764578530854,0.352,2846.5,2846.2,0.4847]
[1764578531171,0.352,2846.5,2846.3,3.51333309]
[1764578531339,0.8351,2846.5,2846.3,3.51333309]
[1764578531532,0.0663,2846.4,2846.2,3.51338691]
[1764578532039,0.0663,2846.3,2846.2,3.51338691]
[1764578532757,0.5452,2846.3,2846.2,3.51338691]
[1764578532961,0.0663,2846.3,2846.2,3.51338691]
[1764578533165,0.0663,2846.3,2846.1,7.02713783]
[1764578533663,0.002,2846.5,2846.1,7.02713783]
[1764578533859,0.407504,2846.5,2846.1,7.02713783]
[1764578534061,0.0663,2846.2,2846.1,3.51355785]
[1764578534252,0.0663,2846.2,2845.9,3.51376793]
[1764578534253,0.352,2846.0,2845.9,3.51376793]
[1764578534458,0.8377,2846.0,2845.9,3.51376793]
[1764578536373,0.352,2846.1,2845.9,7.51229483]
[1764578537159,0.4815,2846.0,2845.9,3.51376793]
[1764578539263,0.629504,2846.5,2845.9,11.49132173]
[1764578539451,0.981504,2846.5,2846.0,0.4847]
[1764578539834,0.981504,2846.5,2845.9,10.54142173]
[1764578540035,0.405504,2846.3,2845.9,7.02759483]
[1764578540431,0.4831,2846.3,2845.8,7.02790076]
[1764578540664,0.576,2846.5,2846.2,0.4847]
[1764578540861,0.576,2846.5,2845.9,0.4652]
[1764578541565,1.0591,2846.5,2845.9,0.4652]
[1764578542541,1.0591,2846.5,2846.0,7.02740688]
[1764578542864,0.8196,2846.4,2846.0,7.02740688]
[1764578543841,0.0816,2846.1,2846.0,3.51370344]
[1764578544570,0.0816,2846.1,2845.8,7.02790076]
[1764578544780,0.0816,2846.1,2845.8,7.50130076]
[1764578545269,0.4637,2846.3,2845.8,11.01525114]
[1764578547146,0.405504,2846.3,2845.8,7.02790076]
[1764578547359,0.0517,2845.9,2845.8,3.51395038]
[1764578547867,0.4505,2845.9,2845.8,3.51395038]
[1764578550188,0.4505,2845.9,2845.6,7.0293947]
[1764578550390,0.4505,2845.9,2845.6,7.4902947]
[1764578550596,0.405504,2846.3,2845.8,0.4946]
[1764578550763,0.405504,2846.1,2845.8,0.4946]
[1764578551771,0.405504,2846.1,2845.9,3.5138269]
[1764578552074,0.4505,2845.9,2845.8,3.51385884]
[1764578552301,0.4505,2845.9,2845.7,3.51401694]
[1764578552786,0.4505,2845.9,2845.7,7.0280908]
[1764578553287,0.504004,2846.1,2845.7,7.0280908]
[1764578553945,0.405504,2846.1,2845.7,7.4889908]
[1764578554287,0.224,2846.5,2846.0,0.4946]
[1764578554591,0.405504,2846.4,2846.1,0.4946]
[1764578554879,0.405504,2846.4,2846.1,0.9555]
[1764578555378,0.407504,2846.5,2846.3,0.4946]
[1764578555947,0.002,2846.5,2846.4,4.46870966]
[1764578559880,0.002,2846.5,2846.4,5.95692579]
[1764578560383,0.002,2846.5,2846.4,6.17892579]
[1764578561476,0.002,2846.5,2846.4,6.31972153]
[1764578564264,0.002,2846.5,2846.4,6.09772153]
[1764578564464,0.002,2846.5,2846.4,6.35485362]
[1764578565893,0.002,2846.5,2846.4,4.72584175]
[1764578569401,0.002,2846.5,2846.4,11.40397638]
[1764578569580,0.002,2846.5,2846.4,11.36884429]
[1764578570270,0.002,2846.5,2846.4,11.50964003]
[1764578570670,0.002,2846.5,2846.4,11.04874003]
[1764578571173,0.002,2846.5,2846.4,11.50964003]
[1764578571576,0.002,2846.5,2846.4,13.01193574]
[1764578575308,0.002,2846.5,2846.4,6.33380111]
[1764578575683,0.002,2846.5,2846.4,6.3689332]
[1764578575878,0.0707,2846.5,2846.4,3.6540054]
[1764578576107,0.5472,2846.5,2846.4,3.51320966]
[1764578577011,0.5472,2846.5,2846.2,7.02691306]
[1764578577316,0.4785,2846.5,2846.2,7.02691306]
[1764578577523,0.0728,2846.3,2846.2,3.51345653]
[1764578578194,0.0728,2846.3,2845.9,0.222]
[1764578578397,0.4958,2846.0,2845.9,0.222]
[1764578578612,0.002,2846.5,2845.9,0.222]
[1764578578817,0.4806,2846.4,2846.0,0.03513703]
[1764578579321,0.4806,2846.4,2846.1,7.02715996]
[1764578579818,0.0687,2846.2,2846.1,3.51357998]
[1764578580019,0.0687,2846.2,2846.1,3.54871577]
[1764578580189,0.0687,2846.2,2846.1,3.51357998]
[1764578580918,0.5452,2846.2,2846.1,3.51357998]
[1764578581222,0.5452,2846.2,2845.9,7.0276538]
[1764578581425,0.5452,2846.2,2845.7,3.51404443]
[1764578581426,0.4765,2846.2,2845.7,3.51404917]
[1764578581720,0.0728,2845.8,2845.6,3.51517757]
[1764578581926,0.1592,2845.7,2845.6,3.51517757]
[1764578582096,0.405504,2846.0,2845.6,3.51517757]
[1764578582296,0.405504,2846.0,2845.6,7.50757492]
[1764578582497,0.0687,2845.7,2845.6,3.51517757]
[1764578583021,0.5461,2845.7,2845.6,0.001]
[1764578584094,0.0687,2845.7,2845.6,0.001]
[1764578587212,0.5461,2845.7,2845.6,0.001]
[1764578588990,0.0687,2845.7,2845.6,0.001]
[1764578590124,0.405504,2845.8,2845.6,0.001]
[1764578590515,0.0696,2845.7,2845.6,0.001]
[1764578592724,0.3951948,2845.8,2845.6,0.4792]
[1764578593119,0.405504,2846.2,2845.7,0.932]
[1764578593316,0.405504,2846.0,2845.7,0.932]
[1764578593625,0.352,2846.1,2845.7,0.4782]
[1764578593825,0.405504,2846.3,2845.7,0.932]
[1764578594129,0.886104,2846.3,2845.7,0.4782]
[1764578594332,0.4806,2846.3,2845.8,3.51395038]
[1764578594530,1.33974507,2846.2,2845.8,3.51395038]
[1764578594730,0.0687,2845.9,2845.8,3.51395038]
[1764578595337,0.4765,2846.1,2845.8,7.02790076]
[1764578595540,0.629504,2846.5,2845.8,7.50610076]
[1764578595541,0.405504,2846.3,2845.8,7.50610076]
[1764578595749,0.886104,2846.4,2845.8,4.44595038]
[1764578596035,2.14677097,2846.4,2845.8,7.50610076]
[1764578596197,1.66617097,2846.4,2845.8,7.50610076]
[1764578596398,0.405504,2846.2,2845.8,7.50610076]
[1764578596618,0.405504,2846.2,2845.8,7.72810076]
[1764578597098,0.405504,2846.2,2845.8,8.18190076]
[1764578597827,0.405504,2846.4,2845.8,7.72810076]
[1764578597998,0.886104,2846.2,2845.8,7.72810076]
[1764578599000,0.405504,2846.2,2845.8,7.24990076]
[1764578599201,0.4806,2846.1,2845.8,7.24990076]
[1764578599700,0.0687,2845.9,2845.8,3.73595038]
[1764578599900,0.0687,2845.9,2845.8,3.51395038]
[1764578600427,0.7045,2845.9,2845.8,3.51395038]
[1764578600927,0.407504,2846.2,2845.8,7.50610076]
[1764578601142,0.888104,2846.2,2845.8,7.50610076]
[1764578601517,0.0687,2845.9,2845.8,3.51395038]
[1764578601722,0.2239,2845.9,2845.8,3.51395038]
[1764578601921,0.352,2846.1,2845.8,3.99215038]
[1764578602322,0.8326,2846.1,2845.8,3.99215038]
[1764578602726,0.8326,2846.1,2845.8,3.51395038]
[1764578603926,0.352,2846.1,2845.8,7.02790076]
[1764578604438,0.352,2846.1,2845.8,7.49550076]
[1764578604927,0.352,2846.1,2845.8,3.51395038]
[1764578605734,0.352,2846.1,2845.8,7.02790076]
[1764578606858,0.352,2846.1,2845.8,7.49550076]
[1764578607552,0.352,2846.1,2845.8,7.02790076]
[1764578609726,0.352,2846.1,2845.7,0.222]
[1764578609727,0.352,2846.1,2845.7,7.02814772]
[1764578609927,0.352,2846.1,2845.7,7.97894772]
[1764578610860,0.8352,2846.1,2845.7,7.97894772]
[1764578611048,0.352,2846.1,2845.7,7.97894772]
[1764578611230,0.352,2846.1,2845.7,7.49574772]
[1764578612663,0.352,2846.1,2845.7,7.02814772]
[1764578612868,0.757504,2846.1,2846.0,0.4585]
[1764578613043,0.002,2846.2,2846.0,0.4585]
[1764578613378,0.002,2846.2,2846.1,0.4585]
[1764578613531,0.002,2846.2,2845.8,0.4922395]
[1764578613734,0.4687,2846.2,2845.9,1.48037059]
[1764578613938,0.4687,2846.2,2845.9,0.222]
[1764578614150,0.0825,2846.0,2845.7,7.02814772]
[1764578615759,0.002,2846.2,2845.9,0.4585]
[1764578616062,0.407504,2846.2,2845.9,0.4585]
[1764578616560,0.407504,2846.2,2845.9,0.9156]
[1764578616760,0.002,2846.2,2845.9,2.06138216]
[1764578618146,0.002,2846.2,2846.0,7.02740688]
[1764578618547,0.002,2846.2,2846.1,0.4585]
[1764578619348,0.002,2846.2,2846.1,0.9156]
[1764578619950,0.002,2846.2,2846.0,3.51370344]
[1764578620149,0.002,2846.2,2846.0,0.4571]
[1764578620351,0.002,2846.2,2846.1,0.4585]
[1764578622567,0.002,2846.2,2846.1,3.97207998]
[1764578623766,0.002,2846.2,2846.1,4.42917998]
[1764578625363,0.002,2846.2,2846.1,5.24566684]
[1764578625875,0.002,2846.2,2846.1,5.46766684]
[1764578626552,0.002,2846.2,2846.1,5.50280263]
[1764578631954,0.002,2846.2,2846.1,6.22839674]
[1764578632155,0.002,2846.2,2846.1,6.36920289]
[1764578632355,0.002,2846.2,2846.1,6.3340671]
[1764578633155,0.002,2846.2,2846.1,6.1120671]
[1764578633355,0.002,2846.2,2846.1,6.3340671]
[1764578635053,0.002,2846.2,2846.1,6.1120671]
[1764578635256,0.002,2846.2,2846.1,6.3340671]
[1764578635563,0.002,2846.2,2846.1,5.64360878]
[1764578637897,0.002,2846.2,2846.1,6.3340671]
[1764578638052,0.002,2846.2,2846.1,6.36920289]
[1764578639409,0.002,2846.2,2846.1,6.14720289]
[1764578639599,0.002,2846.2,2846.1,12.48881809]
[1764578639905,0.002,2846.2,2846.1,12.4536823]
[1764578641207,0.002,2846.2,2846.1,12.2316823]
[1764578641416,0.002,2846.2,2846.1,12.4536823]
[1764578642613,0.002,2846.2,2846.1,13.0050872]
[1764578644934,0.002,2846.2,2846.1,12.7830872]
[1764578645080,0.002,2846.2,2846.1,13.0050872]
[1764578648221,0.002,2846.6,2846.4,0.4514]
[1764578648536,0.002,2846.6,2846.5,7.83755096]
[1764578648696,0.002,2846.6,2846.5,7.8024201]
[1764578648901,0.002,2846.6,2846.5,8.2730201]
[1764578649430,0.002,2846.6,2846.5,11.78610634]
[1764578649630,0.002,2846.6,2846.5,14.04163053]
[1764578649826,0.002,2846.6,2846.5,20.71265063]
[1764578651031,1e-08,2846.8,2846.7,14.51903431]
[1764578651526,1e-08,2846.8,2846.7,18.48987373]
[1764578652726,1e-08,2846.8,2846.7,18.13526373]
[1764578653031,1e-08,2846.8,2846.7,20.52233794]
[1764578653744,1e-08,2846.8,2846.7,20.66308859]
[1764578653902,1e-08,2846.8,2846.7,13.53406849]
[1764578654103,1e-08,2846.8,2846.7,13.75606849]
[1764578654927,1e-08,2846.8,2846.7,14.21406849]
[1764578655127,1e-08,2846.8,2846.7,13.75606849]
[1764578655329,0.42970001,2846.8,2846.7,13.65927849]
[1764578655534,0.89680001,2846.8,2846.7,6.98825839]
[1764578655735,0.89680001,2846.8,2846.7,4.60118418]
[1764578656445,0.89680001,2846.8,2846.7,3.65359007]
[1764578656446,0.42970001,2846.8,2846.7,3.65359007]
[1764578656613,0.89680001,2846.8,2846.7,3.76996781]
[1764578657137,0.89680001,2846.8,2846.7,3.54796781]
[1764578657307,0.89680001,2846.8,2846.7,3.76996781]
[1764578659432,0.89680001,2846.8,2846.7,3.73483942]
[1764578659841,0.89680001,2846.8,2846.7,3.51283942]
[1764578660132,0.89680001,2846.8,2846.7,3.73483942]
[1764578662550,0.89680001,2846.8,2846.7,3.76996781]
[1764578662551,0.42970001,2846.8,2846.7,3.76996781]
[1764578663335,0.89680001,2846.8,2846.7,3.76996781]
[1764578663737,0.42970001,2846.8,2846.7,3.76996781]
[1764578663932,0.39760001,2846.8,2846.7,3.76996781]
[1764578665939,0.39760001,2846.8,2846.7,3.54796781]
[1764578666142,0.88900001,2846.8,2846.7,3.76996781]
[1764578670948,0.39760001,2846.8,2846.7,3.54796781]
[1764578671148,0.88590001,2846.8,2846.7,3.76996781]
[1764578671751,0.88590001,2846.8,2846.7,4.65586782]
[1764578672346,1e-08,2846.8,2846.7,5.13226782]
[1764578672518,0.57320001,2846.8,2846.7,4.65586782]
[1764578672716,1.06340001,2846.8,2846.7,4.43386782]
[1764578673428,0.37350001,2846.8,2846.7,4.65586782]
[1764578674532,0.84070001,2846.8,2846.7,4.65586782]
[1764578677261,0.37350001,2846.8,2846.7,4.65586782]
[1764578678255,0.84070001,2846.8,2846.7,4.43386782]
[1764578678459,0.84070001,2846.8,2846.7,3.51283942]
[1764578680235,0.757504,2846.7,2846.6,0.001]
[1764578680462,1.405004,2846.7,2846.6,0.001]
[1764578680837,1.405004,2846.7,2846.6,3.51396283]
[1764578681344,1.405004,2846.7,2846.6,0.001]
[1764578685456,1.90152455,2846.7,2846.6,0.001]
[1764578686340,1.54952455,2846.7,2846.6,0.001]
[1764578686540,8.22054465,2846.7,2846.6,0.001]
[1764578686739,9.29813876,2846.7,2846.6,0.001]
[1764578687067,0.757504,2846.5,2846.4,0.001]
[1764578687266,8.82055052,2846.5,2846.4,0.001]
[1764578687442,9.28775052,2846.5,2846.4,0.001]
[1764578688050,12.80083676,2846.5,2846.4,0.001]
[1764578693860,6.12981666,2846.5,2846.4,0.001]
[1764578694060,12.44883676,2846.5,2846.4,0.001]
[1764578694275,12.80083676,2846.5,2846.4,0.001]
[1764578694447,2.21122642,2846.5,2846.4,0.001]
[1764578694643,1.1908,2846.5,2846.4,0.001]
[1764578695547,1.596304,2846.5,2846.4,0.001]
[1764578695773,0.777104,2846.5,2846.4,0.001]
[1764578696152,1.621404,2846.5,2846.4,0.001]
[1764578698056,0.777104,2846.5,2846.4,1.05728781]
[1764578698244,0.777104,2846.5,2846.4,4.57049747]
[1764578698650,0.3716,2846.5,2846.4,4.57049747]
[1764578698855,0.8639,2846.5,2846.4,4.57049747]
[1764578699658,0.352,2846.6,2846.4,8.57630713]
[1764578699854,0.405504,2846.6,2846.5,0.4926]
[1764578700156,1e-08,2846.8,2846.5,4.00568624]
[1764578700345,1e-08,2846.8,2846.7,0.4926]
[1764578700979,0.38150001,2846.8,2846.7,0.14080069]
[1764578701147,1.22470001,2846.8,2846.7,0.14080069]
[1764578701352,1e-08,2846.8,2846.7,0.14080069]
[1764578701849,0.38150001,2846.8,2846.7,0.14080069]
[1764578702575,0.38150001,2846.8,2846.4,0.4738]
[1764578702576,5.14292004,2846.8,2846.4,0.001]